fUSD/lending_fUSD_20240503
["ID","MTS","AMOUNT","RATE_DAILY","PERIOD"]
[325346298,1714745480554,-500.0,0.00044109,31]
[325346299,1714745480564,-6215.61,0.00044109,21]
[325346300,1714745480574,-4486.16,0.00044109,31]
[325346301,1714745480585,-500.0,0.00044109,31]
[325346302,1714745480596,-57271.23,0.00044109,31]
[325346303,1714745480606,-500.0,0.00044109,31]
[325346304,1714745480616,-500.0,0.00044109,31]
[325346305,1714745480626,-1299.92,0.00044109,31]
[325346306,1714745480637,-500.0,0.00044109,31]
[325346307,1714745480646,-6438.38732,0.00044109,14]
[325346308,1714745480655,-500.0,0.00044109,7]
[325346309,1714745480665,-500.0,0.00044109,31]
[325346310,1714745480674,-500.0,0.00044109,31]
[325346311,1714745480683,-4838.82,0.00044109,31]
[325346312,1714745480692,-1011.36,0.00044109,31]
[325346313,1714745480702,-500.0,0.00044109,31]
[325346314,1714745480712,-500.0,0.00044109,31]
[325346315,1714745480721,-1083.58,0.00044109,31]
[325346316,1714745480731,-6438.38732,0.00044109,14]
[325346317,1714745480740,-2715.83,0.00044109,31]
[325346318,1714745480749,-151.0,0.00044109,14]
[325346319,1714745480759,-1566.13,0.00044109,31]
[325346320,1714745480770,-642.8,0.00044109,31]
[325346321,1714745480780,-671.095322,0.00044109,14]
[325346322,1714745480790,-500.0,0.00044109,31]
[325346323,1714745480800,-3716.33,0.00044109,31]
[325346324,1714745480810,-500.0,0.00044109,31]
[325346325,1714745480819,-14440.29,0.00044109,31]
[325346326,1714745480829,-500.0,0.00044109,31]
[325346327,1714745480839,-500.0,0.00044109,31]
[325346328,1714745480849,-2448.52,0.00044109,31]
[325346329,1714745480859,-500.0,0.00044109,31]
[325346330,1714745480870,-500.0,0.00044109,31]
[325346331,1714745480887,-671.095322,0.00044109,14]
[325346332,1714745480898,-715.26,0.00044109,31]
[325346333,1714745480909,-8460.38,0.00044109,31]
[325346334,1714745480924,-500.0,0.00044109,31]
[325346335,1714745480934,-565.25,0.00044109,31]
[325346336,1714745480944,-500.0,0.00044109,31]
[325346337,1714745480954,-3609.14,0.00044109,31]
[325346338,1714745480963,-500.0,0.00044109,31]
[325346339,1714745480974,-500.0,0.00044109,31]
[325346340,1714745480983,-800.74,0.00044109,31]
[325346341,1714745480993,-8887.56,0.00044109,31]
[325346342,1714745481003,-2484.88,0.00044109,31]
[325346343,1714745481013,-500.0,0.00044109,31]
[325346344,1714745481023,-13207.51,0.00044109,31]
[325346345,1714745481032,-3952.89,0.00044109,31]
[325346346,1714745481042,-500.0,0.00044109,31]
[325346347,1714745481051,-500.0,0.00044109,31]
[325346348,1714745481061,-3202.89,0.00044109,31]
[325346349,1714745481070,-8238.86,0.00044109,31]
[325346350,1714745481080,-500.0,0.00044109,31]
[325346351,1714745481090,-500.0,0.00044109,31]
[325346352,1714745481099,-500.0,0.00044109,31]
[325346353,1714745481109,-3205.2,0.00044109,31]
[325346354,1714745481118,-151.0,0.00044109,14]
[325346355,1714745481128,-500.0,0.00044109,31]
[325346356,1714745481139,-2710.49,0.00044109,31]
[325346357,1714745481148,-2509.23,0.00044109,31]
[325346358,1714745481157,-670.63,0.00044109,31]
[325346359,1714745481166,-500.0,0.00044109,31]
[325346360,1714745481176,-500.0,0.00044109,31]
[325346361,1714745481185,-151.0,0.00044109,14]
[325346362,1714745481195,-503.71785691,0.00044109,31]
[325346363,1714745481204,-2012.74,0.00044109,31]
[325346364,1714745481213,-500.0,0.00044109,31]
[325346365,1714745481223,-151.0,0.00044109,14]
[325346366,1714745481233,-1527.36,0.00044109,31]
[325346367,1714745481243,-500.0,0.00044109,31]
[325346368,1714745481252,-500.0,0.00044109,31]
[325346369,1714745481262,-1077.31,0.00044109,31]
[325346370,1714745481271,-365.83843448,0.00044109,31]
[325346371,1714745481281,-500.0,0.00044109,31]
[325346372,1714745481290,-500.0,0.00044109,31]
[325346373,1714745481300,-151.0,0.00044109,14]
[325346374,1714745481309,-696.79,0.00044109,31]
[325346375,1714745481319,-2444.34,0.00044109,31]
[325346376,1714745481409,-170.85821871,0.00044109,31]
[325346377,1714745481419,-1337.88,0.00044109,31]
[325346378,1714745481428,-5477.91,0.00044109,31]
[325346379,1714745481438,-500.0,0.00044109,31]
[325346380,1714745481448,-500.0,0.00044109,31]
[325346381,1714745481457,-2477.92,0.00044109,31]
[325346382,1714745481467,-500.0,0.00044109,31]
[325346383,1714745481477,-500.0,0.00044109,31]
[325346384,1714745481486,-500.0,0.00044109,31]
[325346385,1714745481496,-1197.99,0.00044109,31]
[325346386,1714745481506,-151.0,0.00044109,14]
[325346387,1714745481516,-2977.68,0.00044109,31]
[325346388,1714745481527,-5510.11,0.00044109,31]
[325346389,1714745481536,-500.0,0.00044109,31]
[325346390,1714745481546,-500.0,0.00044109,31]
[325346391,1714745481556,-500.0,0.00044109,31]
[325346392,1714745481566,-550.55,0.00044109,31]
[325346393,1714745481576,-500.0,0.00044109,31]
[325346394,1714745481587,-893.9,0.00044109,31]
[325346395,1714745481598,-1138.82,0.00044109,7]
[325346396,1714745481608,-500.0,0.00044109,31]
[325346397,1714745481618,-438.86652052,0.00044109,31]
[325346398,1714745481628,-500.0,0.00044109,31]
[325346399,1714745481640,-3173.9,0.00044109,31]
[325346400,1714745481650,-557.18,0.00044109,31]
[325346401,1714745481660,-1108.67,0.00044109,31]
[325346402,1714745481670,-3349.05,0.00044109,31]
[325346403,1714745481680,-500.0,0.00044109,31]
[325346404,1714745481690,-542.96,0.00044109,31]
[325346405,1714745481700,-500.0,0.00044109,31]
[325346406,1714745481710,-1398.18,0.00044109,31]
[325346407,1714745481720,-623.3,0.00044109,31]
[325346408,1714745481729,-16164.42,0.00044109,31]
[325346409,1714745481739,-3995.4,0.00044109,31]
[325346410,1714745481748,-38992.43,0.00044109,31]
[325346411,1714745481758,-555.53712837,0.00044109,31]
[325346412,1714745481768,-1774.93,0.00044109,31]
[325346413,1714745481778,-500.0,0.00044109,31]
[325346414,1714745481788,-500.0,0.00044109,31]
[325346415,1714745481797,-3702.74,0.00044109,31]
[325346416,1714745481806,-2199.11,0.00044109,31]
[325346417,1714745481815,-500.0,0.00044109,31]
[325346418,1714745481825,-500.0,0.00044109,31]
[325346419,1714745481835,-500.0,0.00044109,31]
[325346420,1714745481845,-586.63,0.00044109,31]
[325346421,1714745481855,-150.0,0.00044142,60]
[325346422,1714745481865,-213.0,0.0004415,30]
[325346423,1714745481878,-221.0,0.0004415,30]
[325346424,1714745481890,-276.54538122,0.00044164,33]
[325346425,1714745481901,-150.0,0.0004418,30]
[325346426,1714745481912,-10000.0,0.000442,12]
[325346427,1714745481923,-1040.52006933,0.00044246,30]
[325346428,1714745481932,-500.0,0.00044253,2]
[325346429,1714745481941,-222.47886,0.00044275,30]
[325346430,1714745481951,-788.0,0.0004429,30]
[325346431,1714745481961,-488.0,0.0004429,30]
[325346432,1714745481970,-500.0,0.00044325,2]
[325346433,1714745481980,-2110.0,0.00044335,15]
[325346434,1714745481989,-500.0,0.00044383,32]
[325346435,1714745481999,-500.0,0.00044383,32]
[325346436,1714745482009,-577.54676247,0.00044383,32]
[325346437,1714745482018,-497.31819367,0.00044383,32]
[325346438,1714745482027,-500.0,0.00044383,32]
[325346439,1714745482036,-500.0,0.00044383,32]
[325346440,1714745482046,-500.0,0.00044383,32]
[325346441,1714745482055,-350.57054042,0.00044383,32]
[325346442,1714745482065,-500.0,0.00044383,32]
[325346443,1714745482074,-500.0,0.00044383,32]
[325346444,1714745482084,-230.2420114,0.00044383,32]
[325346445,1714745482094,-504.07786426,0.00044383,32]
[325346446,1714745482104,-500.0,0.00044383,32]
[325346447,1714745482113,-328.41995753,0.00044383,32]
[325346448,1714745482122,-481.9894654,0.00044383,32]
[325346449,1714745482132,-500.0,0.00044383,32]
[325346450,1714745482142,-500.0,0.00044383,32]
[325346451,1714745482151,-500.0,0.00044383,32]
[325346452,1714745482161,-500.0,0.00044383,32]
[325346453,1714745482171,-500.0,0.00044383,32]
[325346454,1714745482180,-500.0,0.00044383,32]
[325346455,1714745482191,-500.0,0.00044383,32]
[325346456,1714745482200,-866.89,0.00044383,32]
[325346457,1714745482210,-500.0,0.00044383,32]
[325346458,1714745482220,-500.0,0.00044383,32]
[325346459,1714745482229,-506.22264323,0.00044383,32]
[325346460,1714745482239,-1223.75,0.00044383,32]
[325346461,1714745482248,-847.56,0.00044383,32]
[325346462,1714745482258,-500.0,0.00044383,32]
[325346463,1714745482267,-500.0,0.00044383,32]
[325346464,1714745482276,-532.97,0.00044383,32]
[325346465,1714745482286,-535.45153075,0.00044383,32]
[325346466,1714745482296,-500.0,0.00044383,32]
[325346467,1714745482305,-940.69,0.00044383,32]
[325346468,1714745482315,-500.0,0.00044383,32]
[325346469,1714745482325,-508.47082821,0.00044383,32]
[325346470,1714745482334,-500.0,0.00044383,32]
[325346471,1714745482344,-500.0,0.00044383,32]
[325346472,1714745482354,-1925.94,0.00044383,32]
[325346473,1714745482363,-500.0,0.00044383,32]
[325346474,1714745482373,-500.0,0.00044383,32]
[325346475,1714745482383,-500.0,0.00044383,32]
[325346476,1714745482393,-500.0,0.00044383,32]
[325346477,1714745482402,-500.0,0.00044383,32]
[325346478,1714745482412,-506.48,0.00044383,32]
[325346479,1714745482423,-711.13,0.00044383,32]
[325346480,1714745482434,-500.0,0.00044383,32]
[325346481,1714745482444,-500.0,0.00044383,32]
[325346482,1714745482454,-500.0,0.00044383,32]
[325346483,1714745482463,-500.0,0.00044383,32]
[325346484,1714745482472,-500.0,0.00044383,32]
[325346485,1714745482482,-1279.24,0.00044383,32]
[325346486,1714745482492,-500.0,0.00044383,32]
[325346487,1714745482502,-1238.06,0.00044383,32]
[325346488,1714745482512,-674.27,0.00044383,32]
[325346489,1714745482522,-500.0,0.00044383,32]
[325346490,1714745482532,-500.0,0.00044383,32]
[325346491,1714745482541,-616.96,0.00044383,32]
[325346492,1714745482550,-500.0,0.00044383,32]
[325346493,1714745482560,-581.19,0.00044383,32]
[325346494,1714745482570,-500.0,0.00044383,32]
[325346495,1714745482579,-1380.8,0.00044383,32]
[325346496,1714745482590,-520.78279502,0.00044383,32]
[325346497,1714745482599,-896.58,0.00044383,32]
[325346498,1714745482609,-500.0,0.00044383,32]
[325346499,1714745482619,-777.28,0.00044383,32]
[325346500,1714745482628,-1099.22,0.00044383,32]
[325346501,1714745482639,-1298.84,0.00044383,32]
[325346502,1714745482649,-1045.36,0.00044383,32]
[325346503,1714745482658,-509.34925302,0.00044383,32]
[325346504,1714745482668,-500.0,0.00044383,32]
[325346505,1714745482678,-500.0,0.00044383,32]
[325346506,1714745482687,-500.0,0.00044383,32]
[325346507,1714745482697,-929.81,0.00044383,32]
[325346508,1714745482707,-500.0,0.00044383,32]
[325346509,1714745482717,-500.0,0.00044383,32]
[325346510,1714745482728,-500.0,0.00044383,32]
[325346511,1714745482738,-496.99373805,0.00044383,32]
[325346512,1714745482747,-500.0,0.00044383,32]
[325346513,1714745482759,-525.78972053,0.00044383,32]
[325346514,1714745482769,-500.0,0.00044383,32]
[325346515,1714745482780,-151.0,0.00044383,14]
[325346516,1714745482790,-665.37,0.00044383,32]
[325346517,1714745482801,-900.03,0.00044383,32]
[325346518,1714745482812,-1452.45,0.00044383,32]
[325346519,1714745482822,-151.0,0.00044383,14]
[325346520,1714745482832,-500.0,0.00044383,32]
[325346521,1714745482843,-500.0,0.00044383,32]
[325346522,1714745482855,-877.01,0.00044383,32]
[325346523,1714745482865,-500.0,0.00044383,32]
[325346524,1714745482877,-500.0,0.00044383,32]
[325346525,1714745482888,-500.0,0.00044383,32]
[325346526,1714745482901,-535.68,0.00044383,32]
[325346527,1714745482911,-500.0,0.00044383,32]
[325346528,1714745482920,-500.0,0.00044383,32]
[325346529,1714745482930,-500.0,0.00044383,32]
[325346530,1714745482940,-500.0,0.00044383,32]
[325346531,1714745482949,-2009.71,0.00044383,32]
[325346532,1714745482959,-500.0,0.00044383,32]
[325346533,1714745482969,-500.0,0.00044383,32]
[325346534,1714745482979,-151.0,0.00044383,14]
[325346535,1714745482989,-500.0,0.00044383,32]
[325346536,1714745482998,-1422.06,0.00044383,32]
[325346537,1714745483008,-500.0,0.00044383,32]
[325346538,1714745483018,-500.0,0.00044383,32]
[325346539,1714745483028,-500.0,0.00044383,32]
[325346540,1714745483038,-500.0,0.00044383,32]
[325346541,1714745483048,-500.0,0.00044383,32]
[325346542,1714745483058,-1197.13,0.00044383,32]
[325346543,1714745483068,-500.0,0.00044383,32]
[325346544,1714745483078,-500.0,0.00044383,32]
[325346545,1714745483088,-511.49207221,0.00044383,32]
[325346546,1714745483097,-1564.88,0.00044383,32]
[325346547,1714745483107,-500.0,0.00044383,32]
[325346548,1714745483116,-500.0,0.00044383,32]
[325346549,1714745483125,-862.34,0.00044383,32]
[325346550,1714745483135,-500.0,0.00044383,32]
[325346551,1714745483145,-500.0,0.00044383,32]
[325346552,1714745483154,-1022.67,0.00044383,32]
[325346553,1714745483164,-787.05,0.00044383,32]
[325346554,1714745483173,-991.92,0.00044383,32]
[325346555,1714745483183,-500.0,0.00044383,32]
[325346556,1714745483192,-516.41,0.00044383,32]
[325346557,1714745483202,-500.0,0.00044383,32]
[325346558,1714745483211,-510.61,0.00044383,32]
[325346559,1714745483222,-943.66,0.00044383,32]
[325346560,1714745483231,-500.0,0.00044383,32]
[325346561,1714745483240,-972.79,0.00044383,32]
[325346562,1714745483250,-151.0,0.00044383,14]
[325346563,1714745483259,-500.0,0.00044383,32]
[325346564,1714745483268,-1908.61,0.00044383,32]
[325346565,1714745483278,-500.0,0.00044383,32]
[325346566,1714745483287,-500.0,0.00044383,32]
[325346567,1714745483296,-500.0,0.00044383,32]
[325346568,1714745483306,-514.98661297,0.00044383,32]
[325346569,1714745483315,-500.0,0.00044383,32]
[325346570,1714745483324,-500.0,0.00044383,32]
[325346571,1714745483333,-648.36,0.00044383,32]
[325346572,1714745483342,-500.0,0.00044383,32]
[325346573,1714745483351,-500.0,0.00044383,32]
[325346574,1714745483360,-500.0,0.00044383,32]
[325346575,1714745483370,-766.74,0.00044383,32]
[325346576,1714745483379,-1188.73,0.00044383,32]
[325346577,1714745483390,-1373.63,0.00044383,32]
[325346578,1714745483400,-500.0,0.00044383,32]
[325346579,1714745483409,-578.26380805,0.00044383,32]
[325346580,1714745483419,-174.778651,0.00044383,14]
[325346581,1714745483429,-296.86162638,0.00044383,32]
[325346582,1714745483439,-500.0,0.00044383,32]
[325346583,1714745483448,-500.0,0.00044383,32]
[325346584,1714745483458,-500.0,0.00044383,32]
[325346585,1714745483467,-174.778651,0.00044383,14]
[325346586,1714745483477,-500.0,0.00044383,32]
[325346587,1714745483486,-1392.92,0.00044383,32]
[325346588,1714745483495,-500.0,0.00044383,32]
[325346589,1714745483505,-500.0,0.00044383,32]
[325346590,1714745483514,-1760.48,0.00044383,32]
[325346591,1714745483524,-500.0,0.00044383,32]
[325346592,1714745483533,-1354.76,0.00044383,32]
[325346593,1714745483542,-1207.33,0.00044383,32]
[325346594,1714745483552,-500.0,0.00044383,32]
[325346595,1714745483562,-500.0,0.00044383,32]
[325346596,1714745483572,-1139.25,0.00044383,32]
[325346597,1714745483582,-500.0,0.00044383,32]
[325346598,1714745483591,-500.0,0.00044383,32]
[325346599,1714745483601,-1365.34,0.00044383,32]
[325346600,1714745483611,-500.0,0.00044383,32]
[325346601,1714745483620,-1280.0,0.00044383,32]
[325346602,1714745483629,-988.3,0.00044383,32]
[325346603,1714745483641,-500.0,0.00044383,32]
[325346604,1714745483650,-500.0,0.00044383,32]
[325346605,1714745483659,-500.0,0.00044383,32]
[325346606,1714745483669,-556.01,0.00044383,32]
[325346607,1714745483679,-500.0,0.00044383,32]
[325346608,1714745483689,-1288.06,0.00044383,32]
[325346609,1714745483699,-500.0,0.00044383,32]
[325346610,1714745483708,-500.0,0.00044383,32]
[325346611,1714745483718,-500.0,0.00044383,32]
[325346612,1714745483728,-500.0,0.00044383,32]
[325346613,1714745483738,-500.0,0.00044383,32]
[325346614,1714745483747,-515.64,0.00044383,32]
[325346615,1714745483757,-500.0,0.00044383,32]
[325346616,1714745483766,-500.0,0.00044383,32]
[325346617,1714745483776,-500.0,0.00044383,32]
[325346618,1714745483785,-500.0,0.00044383,32]
[325346619,1714745483795,-500.0,0.00044383,32]
[325346620,1714745483804,-500.0,0.00044383,32]
[325346621,1714745483814,-151.0,0.00044383,14]
[325346622,1714745483823,-500.0,0.00044383,32]
[325346623,1714745483834,-694.72,0.00044383,32]
[325346624,1714745483844,-910.41,0.00044383,32]
[325346625,1714745483854,-1189.35,0.00044383,32]
[325346626,1714745483865,-1628.76,0.00044383,32]
[325346627,1714745483879,-500.0,0.00044383,32]
[325346628,1714745483891,-1209.89,0.00044383,32]
[325346629,1714745483904,-500.0,0.00044383,32]
[325346630,1714745483915,-2196.31,0.00044383,32]
[325346631,1714745483925,-500.0,0.00044383,32]
[325346632,1714745483935,-1682.57,0.00044383,32]
[325346633,1714745483946,-500.0,0.00044383,32]
[325346634,1714745483955,-2034.12,0.00044383,32]
[325346635,1714745483966,-500.0,0.00044383,32]
[325346636,1714745483975,-500.0,0.00044383,32]
[325346637,1714745483986,-500.0,0.00044383,32]
[325346638,1714745483995,-500.0,0.00044383,32]
[325346639,1714745484005,-516.12904564,0.00044383,32]
[325346640,1714745484015,-1363.95,0.00044383,32]
[325346641,1714745484024,-689.44,0.00044383,32]
[325346642,1714745484034,-500.0,0.00044383,32]
[325346643,1714745484045,-500.0,0.00044383,32]
[325346644,1714745484054,-500.0,0.00044383,32]
[325346645,1714745484063,-1716.49,0.00044383,32]
[325346646,1714745484073,-151.0,0.00044383,14]
[325346647,1714745484083,-608.15,0.00044383,32]
[325346648,1714745484092,-505.74,0.00044383,32]
[325346649,1714745484102,-849.97,0.00044383,32]
[325346650,1714745484111,-500.0,0.00044383,32]
[325346651,1714745484121,-500.0,0.00044383,32]
[325346652,1714745484130,-500.0,0.00044383,32]
[325346653,1714745484142,-500.0,0.00044383,32]
[325346654,1714745484151,-151.0,0.00044383,14]
[325346655,1714745484160,-500.0,0.00044383,32]
[325346656,1714745484170,-585.56,0.00044383,32]
[325346657,1714745484179,-500.0,0.00044383,32]
[325346658,1714745484188,-151.0,0.00044383,14]
[325346659,1714745484198,-500.0,0.00044383,32]
[325346660,1714745484207,-1144.49,0.00044383,32]
[325346661,1714745484216,-898.74,0.00044383,32]
[325346662,1714745484226,-1132.04,0.00044383,32]
[325346663,1714745484236,-500.0,0.00044383,32]
[325346664,1714745484245,-500.0,0.00044383,32]
[325346665,1714745484255,-505.91255456,0.00044383,32]
[325346666,1714745484264,-500.0,0.00044383,32]
[325346667,1714745484274,-500.0,0.00044383,32]
[325346668,1714745484283,-500.0,0.00044383,32]
[325346669,1714745484292,-500.0,0.00044383,32]
[325346670,1714745484302,-500.0,0.00044383,32]
[325346671,1714745484311,-500.0,0.00044383,32]
[325346672,1714745484320,-500.0,0.00044383,32]
[325346673,1714745484329,-500.0,0.00044383,32]
[325346674,1714745484339,-1106.19,0.00044383,32]
[325346675,1714745484348,-2203.32,0.00044383,32]
[325346676,1714745484358,-502.36976597,0.00044383,32]
[325346677,1714745484367,-500.0,0.00044383,32]
[325346678,1714745484376,-500.0,0.00044383,32]
[325346679,1714745484385,-1818.71,0.00044383,32]
[325346680,1714745484395,-763.01,0.00044383,32]
[325346681,1714745484404,-600.95447767,0.00044383,32]
[325346682,1714745484413,-2342.89,0.00044383,32]
[325346683,1714745484423,-1511.45,0.00044383,32]
[325346684,1714745484433,-500.0,0.00044383,32]
[325346685,1714745484442,-500.0,0.00044383,32]
[325346686,1714745484451,-500.0,0.00044383,32]
[325346687,1714745484461,-1159.25,0.00044383,32]
[325346688,1714745484470,-500.0,0.00044383,32]
[325346689,1714745484479,-500.0,0.00044383,32]
[325346690,1714745484488,-917.38,0.00044383,32]
[325346691,1714745484497,-500.0,0.00044383,32]
[325346692,1714745484507,-500.0,0.00044383,32]
[325346693,1714745484516,-1596.25,0.00044383,32]
[325346694,1714745484526,-500.0,0.00044383,32]
[325346695,1714745484535,-1176.24,0.00044383,32]
[325346696,1714745484545,-500.0,0.00044383,32]
[325346697,1714745484554,-500.0,0.00044383,32]
[325346698,1714745484564,-1905.45,0.00044383,32]
[325346699,1714745484574,-1519.72,0.00044383,32]
[325346700,1714745484583,-500.0,0.00044383,32]
[325346701,1714745484593,-1396.44,0.00044383,32]
[325346702,1714745484602,-2039.55,0.00044383,32]
[325346703,1714745484612,-500.0,0.00044383,32]
[325346704,1714745484621,-954.51,0.00044383,32]
[325346705,1714745484630,-500.0,0.00044383,32]
[325346706,1714745484642,-310.546634,0.00044383,14]
[325346707,1714745484652,-2521.54,0.00044383,32]
[325346708,1714745484662,-1072.91,0.00044383,32]
[325346709,1714745484671,-310.546634,0.00044383,14]
[325346710,1714745484681,-500.0,0.00044383,32]
[325346711,1714745484691,-1288.12,0.00044383,32]
[325346712,1714745484700,-500.0,0.00044383,32]
[325346713,1714745484710,-1152.92,0.00044383,32]
[325346714,1714745484720,-500.0,0.00044383,32]
[325346715,1714745484729,-500.0,0.00044383,32]
[325346716,1714745484740,-500.0,0.00044383,32]
[325346717,1714745484750,-824.65,0.00044383,32]
[325346718,1714745484760,-501.14554727,0.00044383,32]
[325346719,1714745484770,-353.88541455,0.00044383,32]
[325346720,1714745484779,-500.0,0.00044383,32]
[325346721,1714745484790,-2569.44,0.00044383,32]
[325346722,1714745484800,-500.0,0.00044383,32]
[325346723,1714745484810,-2038.64,0.00044383,32]
[325346724,1714745484820,-500.0,0.00044383,32]
[325346725,1714745484830,-500.0,0.00044383,32]
[325346726,1714745484840,-500.0,0.00044383,32]
[325346727,1714745484849,-183.71974735,0.00044383,32]
[325346728,1714745484859,-500.0,0.00044383,32]
[325346729,1714745484870,-500.0,0.00044383,32]
[325346730,1714745484880,-500.0,0.00044383,32]
[325346731,1714745484892,-500.0,0.00044383,32]
[325346732,1714745484905,-500.0,0.00044383,32]
[325346733,1714745484915,-500.0,0.00044383,32]
[325346734,1714745484924,-1554.4,0.00044383,32]
[325346735,1714745484934,-1491.81,0.00044383,32]
[325346736,1714745484944,-151.0,0.00044383,14]
[325346737,1714745484954,-2118.2,0.00044383,32]
[325346738,1714745484965,-500.0,0.00044383,32]
[325346739,1714745484975,-1726.11,0.00044383,32]
[325346740,1714745484985,-500.0,0.00044383,32]
[325346741,1714745484994,-500.0,0.00044383,32]
[325346742,1714745485004,-586.98,0.00044383,32]
[325346743,1714745485014,-505.56047417,0.00044383,32]
[325346744,1714745485024,-504.81,0.00044383,32]
[325346745,1714745485034,-274.396528,0.00044383,14]
[325346746,1714745485044,-1837.48,0.00044383,32]
[325346747,1714745485054,-500.0,0.00044383,32]
[325346748,1714745485064,-217.52836683,0.00044383,32]
[325346749,1714745485074,-2353.26,0.00044383,32]
[325346750,1714745485083,-2197.62,0.00044383,32]
[325346751,1714745485093,-1217.34,0.00044383,32]
[325346752,1714745485104,-314.65209334,0.00044383,32]
[325346753,1714745485114,-920.29,0.00044383,32]
[325346754,1714745485124,-995.69,0.00044383,32]
[325346755,1714745485134,-500.0,0.00044383,32]
[325346756,1714745485147,-3090.42,0.00044383,32]
[325346757,1714745485157,-500.0,0.00044383,32]
[325346758,1714745485167,-500.0,0.00044383,32]
[325346759,1714745485177,-500.0,0.00044383,32]
[325346760,1714745485188,-1363.69,0.00044383,32]
[325346761,1714745485198,-151.0,0.00044383,14]
[325346762,1714745485207,-765.12,0.00044383,32]
[325346763,1714745485217,-1189.51,0.00044383,32]
[325346764,1714745485227,-151.0,0.00044383,14]
[325346765,1714745485236,-500.0,0.00044383,32]
[325346766,1714745485246,-1321.06,0.00044383,32]
[325346767,1714745485256,-933.99,0.00044383,32]
[325346768,1714745485266,-2014.01,0.00044383,32]
[325346769,1714745485275,-1368.98,0.00044383,32]
[325346770,1714745485286,-2195.06,0.00044383,32]
[325346771,1714745485296,-3574.31,0.00044383,32]
[325346772,1714745485305,-1996.66,0.00044383,32]
[325346773,1714745485315,-500.0,0.00044383,32]
[325346774,1714745485324,-234.381647,0.00044383,14]
[325346775,1714745485334,-151.0,0.00044383,14]
[325346776,1714745485343,-500.0,0.00044383,32]
[325346777,1714745485353,-532.4,0.00044383,32]
[325346778,1714745485363,-593.89,0.00044383,32]
[325346779,1714745485372,-234.381647,0.00044383,14]
[325346780,1714745485382,-1632.1,0.00044383,32]
[325346781,1714745485394,-501.42158417,0.00044383,32]
[325346782,1714745485404,-504.9837095,0.00044383,32]
[325346783,1714745485413,-660.38,0.00044383,32]
[325346784,1714745485423,-500.0,0.00044383,32]
[325346785,1714745485433,-500.0,0.00044383,32]
[325346786,1714745485443,-3305.31,0.00044383,32]
[325346787,1714745485452,-500.0,0.00044383,32]
[325346788,1714745485462,-500.0,0.00044383,32]
[325346789,1714745485472,-1045.358258,0.00044383,14]
[325346790,1714745485482,-746.35,0.00044383,32]
[325346791,1714745485491,-680.64,0.00044383,32]
[325346792,1714745485501,-2645.49,0.00044383,32]
[325346793,1714745485511,-753.039424,0.00044383,14]
[325346794,1714745485521,-500.0,0.00044383,32]
[325346795,1714745485530,-665.55,0.00044383,32]
[325346796,1714745485540,-500.0,0.00044383,32]
[325346797,1714745485550,-1045.358258,0.00044383,14]